Cogmind - Beta 9.6 --- EXPLORER MODE // 2020.07.04 @ 10:33:54 Player: hoover900 Result: Destroyed by D-53 Grenadier with Mini Grenade Launcher Performance ------------- Evolutions (0) 0 Regions Visited (4) 800 Robots Destroyed (24) 120 Value Destroyed (131) 131 Prototype IDs (0) 0 Alien Tech Used (0) 0 Bonus (0) 0 TOTAL SCORE: 1051 Bonus ------- None Cogmind --------- Core Integrity 0/250 Matter 140/300 Energy 98/100 System Corruption 5% Temperature Cool (1) Movement Walking (150) Ox1 Location -9/Mines Parts ------- > --- POWER (1) -------- (None) > --- PROPULSION (2) --- Aluminum Leg > --- UTILITY (3) ------ Large Storage Unit Terrain Scan Processor Weapon Shielding > --- WEAPON (2) ------- (None) > --- INVENTORY (10) --- Light Treads Light Treads Aluminum Leg Large Storage Unit Propulsion Shielding Peak State ------------ > --- POWER ------------ Ion Engine > --- PROPULSION ------- Aluminum Leg Aluminum Leg > --- UTILITY ---------- Large Storage Unit Terrain Scanner Terrain Scan Processor > --- WEAPON ----------- Light Assault Rifle Rocket Launcher > --- INVENTORY -------- Ion Engine Nuclear Core Light Treads Light Treads Propulsion Shielding Weapon Shielding Beam Cannon Assault Rifle Assault Rifle [Rating: 11] Favorites ----------- Power Ion Engine Engine Ion Engine Propulsion Aluminum Leg Leg Aluminum Leg Utility Terrain Scanner Device Terrain Scanner Storage Large Storage Unit Processor Terrain Scan Processor Protection Weapon Shielding Weapon Light Assault Rifle Energy Cannon Beam Cannon Ballistic Gun Light Assault Rifle Launcher Rocket Launcher Build | -11 -10 -10 -10 -9 ------- Run | Scr Mat Min Exi Min Slots Evolved 1 | . 1 . . . Power . | . . . . . Propulsion . | . . . . . Utility 1 | . 1 . . . Weapon . | . . . . . Parts Attached 17 | 7 4 . 1 5 Power 3 | 1 . . 1 1 Engine 3 | 1 . . 1 1 Core . | . . . . . Reactor . | . . . . . Propulsion 2 | 2 . . . . Treads . | . . . . . Leg 2 | 2 . . . . Wheel . | . . . . . Hover . | . . . . . Flight . | . . . . . Utility 6 | 2 3 . . 1 Device 1 | . 1 . . . Storage 2 | 1 1 . . . Processor 2 | 1 1 . . . Hackware . | . . . . . Protection 1 | . . . . 1 Artifact . | . . . . . Weapon 6 | 2 1 . . 3 Energy Gun . | . . . . . Energy Cannon 1 | . . . . 1 Ballistic Gun 4 | 2 . . . 2 Ballistic Cannon . | . . . . . Launcher 1 | . 1 . . . Special Weapon . | . . . . . Impact Weapon . | . . . . . Slashing Weapon . | . . . . . Piercing Weapon . | . . . . . Special Melee Weapon . | . . . . . Unidentified Prototypes . | . . . . . Parts Lost 9 | . . . . 9 Power 2 | . . . . 2 Propulsion 1 | . . . . 1 Utility 1 | . . . . 1 Weapon 5 | . . . . 5 Highest Loss Streak 9 | . . . . 9 Average Slot Usage (%) 99 | . 100 100 100 99 Engine 11 | . 12 12 12 11 Leg 25 | . 25 25 25 25 Device 12 | . 12 12 12 12 Storage 12 | . 12 12 12 12 Processor 12 | . 12 12 12 12 Ballistic Gun 12 | . 21 12 12 12 Launcher 11 | . 3 12 12 11 Naked Turns . | . . . . . Heaviest Build 27 | 16 27 27 27 27 Greatest Support 20 | 20 20 20 20 20 Greatest Overweight (x) 4 | 4 1 1 1 1 Average Overweight (x) . | . . 1 1 . Largest Inventory Capacity 10 | 8 10 10 10 10 Average Capacity 9 | 7 8 10 10 10 Most Carried 10 | 7 8 8 10 10 Average Carried 8 | 4 7 8 8 9 Final Capacity 10 | 8 10 10 10 10 Final Carried 9 | 7 8 8 9 5 Class Distribution -------------------- 100% | Hacker-Mutant Dominant Class ---------------- Hacker-Mutant | -10/Materials Hacker-Mutant | -10/Mines Hacker-Mutant | -10/Exiles Hacker-Mutant | -9/Mines Resources | -11 -10 -10 -10 -9 ----------- Run | Scr Mat Min Exi Min Matter Collected 353 | 240 . . . 113 Remotely . | . . . . . Salvage Created 153 | . 66 . . 87 Parts 7 | . 5 . . 2 Haulers Intercepted . | . . . . . Recyclers Shooed . | . . . . . Parts Field Recycled . | . . . . . Retrieved Matter . | . . . . . Parts Self-Destructed . | . . . . . Prevented . | . . . . . Kills | -11 -10 -10 -10 -9 ------- Run | Scr Mat Min Exi Min Combat Hostiles Destroyed 23 | . 1 . . 22 Guns 3 | . 1 . . 2 AOE 20 | . . . . 20 Classes Destroyed 3 | . 2 . . 1 Watcher 1 | . 1 . . . Grunt 3 | . 1 . . 2 Assembled 20 | . . . . 20 Best Kill Streak 20 | . 1 . . 20 Combat Bots Only 20 | . 1 . . 20 Max Kills in Single Turn 5 | . 1 . . 5 Gunslinging . | . . . . . Exploded 5 | . . . . 5 Melee . | . . . . . Uniques/NPCs Destroyed . | . . . . . Combat | -11 -10 -10 -10 -9 -------- Run | Scr Mat Min Exi Min Damage Taken 1167 | . 24 . . 1143 Core 280 | . . . . 280 Absorbed by Shields . | . . . . . Core Remaining (%) 100 | 100 . . . . Volleys Fired 25 | . 3 . . 22 Largest 2 | . 2 . . 2 Hottest 80 | . 40 . . 80 Shots Fired 43 | . 6 . . 37 Gun 29 | . 6 . . 23 Cannon 1 | . . . . 1 Launcher 13 | . . . . 13 Special . | . . . . . Kinetic 29 | . 6 . . 23 Thermal 1 | . . . . 1 Explosive 13 | . . . . 13 Electromagnetic . | . . . . . Robot Hit Streak 18 | . 4 . . 18 Robot Miss Streak 2 | . . . . 2 Penetration Max . | . . . . . Secondary Targets . | . . . . . Shots Hit Robots 36 | . 4 . . 32 Core Hits 55 | . 3 . . 52 Critical Hits . | . . . . . Critical Kills . | . . . . . Critical Parts Destroyed . | . . . . . Melee Attacks . | . . . . . Impact . | . . . . . Slashing . | . . . . . Piercing . | . . . . . Sneak Attacks . | . . . . . Combat Hostiles . | . . . . . Follow-up Attacks . | . . . . . Damage Inflicted 1676 | . 48 . . 1628 Guns 232 | . 48 . . 184 Cannons 17 | . . . . 17 Explosions 1427 | . . . . 1427 Melee . | . . . . . Ramming . | . . . . . Kinetic 232 | . 48 . . 184 Thermal 17 | . . . . 17 Explosive 1427 | . . . . 1427 Electromagnetic . | . . . . . Impact . | . . . . . Slashing . | . . . . . Piercing . | . . . . . Highest Corruption 5 | . . . . 5 Average Corruption 5 | . . . . 5 Corruption Purged . | . . . . . Effects 1 | . . . . 1 Message Errors 1 | . . . . 1 Overload Shots . | . . . . . Overflow Damage 70 | . . . . 70 Projectiles . | . . . . . Explosions 70 | . . . . 70 Melee . | . . . . . Knockbacks . | . . . . . Impact . | . . . . . Kinetic . | . . . . . Secondary . | . . . . . Self-Inflicted Damage 16 | . . . . 16 Shots 1 | . . . . 1 Rammed . | . . . . . Targets Rammed . | . . . . . Kicked . | . . . . . Crushed . | . . . . . Highest Temperature 24 | . . . . 24 Average Temperature 10 | . . . . 10 Received Heat Transfer 24 | . . . . 24 Siege Activations . | . . . . . Robots Corrupted . | . . . . . Combat Hostiles . | . . . . . Parts Fried . | . . . . . Impact Corruptions . | . . . . . Robots Melted . | . . . . . Combat Hostiles . | . . . . . Parts Melted . | . . . . . Heat Transferred 37 | . . . . 37 Parts Sabotaged . | . . . . . Parts Stolen . | . . . . . Parts Stripped . | . . . . . Power Chain Reactions . | . . . . . Missiles Intercepted . | . . . . . Alert | -11 -10 -10 -10 -9 ------- Run | Scr Mat Min Exi Min Peak Influence 50 | . 27 7 . 50 Average Influence 10 | . 12 7 . 13 Maximum Alert Level . | . . . . . Low Security (%) 100 | 100 100 100 . 100 Level 1 . | . . . . . Level 2 . | . . . . . Level 3 . | . . . . . Level 4 . | . . . . . Level 5 . | . . . . . High Security . | . . . . . Max Security . | . . . . . Squads Dispatched . | . . . . . Investigation . | . . . . . Extermination . | . . . . . Reinforcement . | . . . . . Assault . | . . . . . Garrison . | . . . . . Intercept . | . . . . . Construction Impeded . | . . . . . Haulers Reinforced . | . . . . . Stealth | -11 -10 -10 -10 -9 --------- Run | Scr Mat Min Exi Min Distress Signals . | . . . . . Communications Jammed . | . . . . . Distress Signals . | . . . . . Times Spotted 24 | . 2 . . 22 Peak Tracking Total 17 | . 2 . . 17 Tactical Retreats . | . . . . . Traps | -11 -10 -10 -10 -9 ------- Run | Scr Mat Min Exi Min Traps Triggered 1 | . 1 . . . Indirectly . | . . . . . Trap Hack Attempts . | . . . . . Triggered . | . . . . . Disarmed . | . . . . . Reprogrammed . | . . . . . Reused . | . . . . . Traps Extracted . | . . . . . Installed . | . . . . . Triggered . | . . . . . Machines | -11 -10 -10 -10 -9 ---------- Run | Scr Mat Min Exi Min Machines Disabled . | . . . . . Max in Single Turn . | . . . . . Machines Sabotaged . | . . . . . Garrisons Compromised . | . . . . . Overloaded Fab Kills . | . . . . . Fab Network Shutdowns . | . . . . . Hacking | -11 -10 -10 -10 -9 --------- Run | Scr Mat Min Exi Min Machines Accessed 4 | . . . 4 . Terminals . | . . . . . Fabricators . | . . . . . Repair Stations . | . . . . . Recycling Units . | . . . . . Scanalyzers . | . . . . . Garrison Access . | . . . . . Total Hacks 48 | . . . 48 . Successful 48 | . . . 48 . Failed . | . . . . . Catastrophic . | . . . . . Database Lockouts . | . . . . . Manual . | . . . . . Terminals . | . . . . . Fabricators . | . . . . . Repair Stations . | . . . . . Recycling Units . | . . . . . Scanalyzers . | . . . . . Garrison Access . | . . . . . Terminal Hacks 48 | . . . 48 . Record 48 | . . . 48 . Fabricator Hacks . | . . . . . Repair Station Hacks . | . . . . . Recycling Unit Hacks . | . . . . . Scanalyzer . | . . . . . Garrison Access Hacks . | . . . . . Unauthorized Hacks . | . . . . . Terminals . | . . . . . Fabricators . | . . . . . Repair Stations . | . . . . . Recycling Units . | . . . . . Scanalyzers . | . . . . . Garrison Access . | . . . . . Data Cores Recovered . | . . . . . Used . | . . . . . Hacking Detections . | . . . . . Full Trace Events . | . . . . . Feedback Events . | . . . . . Feedback Blocked . | . . . . . Robot Schematics Acquired . | . . . . . Robots Built . | . . . . . Matter . | . . . . . Time . | . . . . . Total Robot Build Rating . | . . . . . Part Schematics Acquired . | . . . . . Parts Built . | . . . . . Matter . | . . . . . Time . | . . . . . Total Part Build Rating . | . . . . . Parts Repaired . | . . . . . Time . | . . . . . Parts Recycled . | . . . . . Recycled Matter . | . . . . . Retrieved Matter . | . . . . . Retrieved Components . | . . . . . Parts Scanalyzed . | . . . . . Part Schematics Acquired . | . . . . . Parts Damaged . | . . . . . Bothacking | -11 -10 -10 -10 -9 ------------ Run | Scr Mat Min Exi Min Used RIF Installer . | . . . . . Robots Hacked . | . . . . . Non-combat . | . . . . . Combat . | . . . . . Robot Hacks Applied . | . . . . . Relay Couplers Released . | . . . . . Robots Rewired . | . . . . . Allies Hacked . | . . . . . Hacks Repelled . | . . . . . Allies | -11 -10 -10 -10 -9 -------- Run | Scr Mat Min Exi Min Total Allies . | . . . . . Largest Group . | . . . . . Highest-Rated Group . | . . . . . Highest-Rated Ally . | . . . . . Total Orders . | . . . . . Ally Attacks . | . . . . . Total Damage . | . . . . . Kills . | . . . . . Allies Corrupted . | . . . . . Allies Melted . | . . . . . Intel | -11 -10 -10 -10 -9 ------- Run | Scr Mat Min Exi Min Robot Analysis Total . | . . . . . Derelict Logs Recovered 1 | . . . . 1 Drone Launches . | . . . . . Drone Recoveries . | . . . . . Exploration | -11 -10 -10 -10 -9 ------------- Run | Scr Mat Min Exi Min Turns Passed 2078 | 115 170 84 1275 434 Spaces Moved 1348 | 71 123 57 847 250 Core 13 | 13 . . . . Treads . | . . . . . Legs 1335 | 58 123 57 847 250 Wheels . | . . . . . Hover . | . . . . . Flight . | . . . . . Fastest Speed 50 | 50 120 150 150 120 Average Speed 146 | 133 123 150 150 149 Slowest Speed 250 | 250 150 150 150 150 Overloaded Moves . | . . . . . Propulsion Burnouts . | . . . . . Robots Hopped . | . . . . . Cave-ins Triggered 1 | . . . . 1 Exploration Rate (%) 38 | 4 27 12 91 59 Regions Visited 4 Branch Regions 3 Pre-discovered Areas 2 | . . . 1 1 Known Exits Taken 4 | 1 1 1 1 . Unknown Exits Taken . | . . . . . Scrap Searched . | . . . . . Spaces Dug . | . . . . . Terrain Destroyed 91 | . . . . 91 Melee . | . . . . . Projectile . | . . . . . AOE 91 | . . . . 91 Actions | -11 -10 -10 -10 -9 --------- Run | Scr Mat Min Exi Min Total 1416 | 91 138 56 853 278 Wait . | . . . . . Move 1344 | 70 122 56 846 250 Hop . | . . . . . Pick Up 23 | 14 5 . 3 1 Fast Attach 1 | . . . 1 . Attach 14 | 7 2 . . 5 Detach . | . . . . . Swap 2 | . 2 . . . Drop 7 | . 4 . 3 . Fire 25 | . 3 . . 22 Melee . | . . . . . Ram . | . . . . . Kick . | . . . . . Crush . | . . . . . Escape Stasis . | . . . . . Rewire . | . . . . . Trap . | . . . . . Miscellaneous . | . . . . . Route ------- -11/Scrapyard -10/Materials -10/Mines -10/Exiles (discovered 2 exits: *Min x2) -9/Mines (discovered 1 exit: Mat) History --------- Turn | Location | Event 10 | -11/Scrapyard | Identified exit to Materials 10 | -11/Scrapyard | Discovered exit to Materials (range 16) 116 | -11/Scrapyard | Entered Materials 116 | -10/Materials | Evolved 1 slot: Utility x1 257 | -10/Materials | Identified exit to Mines 257 | -10/Materials | Discovered exit to Mines (range 8) 286 | -10/Materials | Entered Mines 304 | -10/Mines | Met a Derelict bent on vengeance 307 | -10/Mines | Build established: Hacker-Mutant 360 | -10/Mines | Identified exit to Exiles 360 | -10/Mines | Discovered exit to Exiles (range 7) 363 | -10/Mines | Deemed a non-threat by the Exiles lab entrance 370 | -10/Mines | Entered Exiles 426 | -10/Exiles | Met 8R-AWN 453 | -10/Exiles | Met EX-HEX 573 | -10/Exiles | Met EX-DEC 634 | -10/Exiles | Visited The Gauntlet 833 | -10/Exiles | Learned location of Zion (-7) 918 | -10/Exiles | Identified exit to Mines 918 | -10/Exiles | Discovered exit to Mines (range 10) 1018 | -10/Exiles | Met EX-BIN 1258 | -10/Exiles | Discovered exit to Mines (range 14) 1645 | -10/Exiles | Entered Mines 1734 | -9/Mines | Identified exit to Materials 1734 | -9/Mines | Discovered exit to Materials (range 14) 2013 | -9/Mines | Assembled infested the area 2065 | -9/Mines | Destroyed 20 combat bots 2065 | -9/Mines | Core integrity fell below 50% 2070 | -9/Mines | Crushed by falling debris 2072 | -9/Mines | Core integrity fell below 20% 2079 | -9/Mines | Destroyed by D-53 Grenadier with Mini Grenade Launcher Last Messages --------------- 02046_ U-05 Engineer destroyed. 02047_ Rocket Launcher destroyed. 02052_ Ion Engine destroyed. 02055_ The unstable cave ceiling collapses. 02062_ Lgt. Assault Rifle destroyed. 02062_ Assault Rifle destroyed. 02066_ The unstable cave ceiling collapses. 02066_ Beam Cannon destroyed. 02070_ The unstable cave ceiling collapses. 02070_ Crushed by falling debris. 02070_ Aluminum Leg destroyed. 02070_ System corrupted by crushing effect (+3). 02070_ Terrain Scanner destroyed. 02070_ System corrupted by crushing effect (+2). 02071_ The unstable cave ceiling collapses. 02071_ Ion Engine destroyed. 02072_ The unstable cave ceiling collapses. 02077_ Assault Rifle destroyed. 02078_ The unstable cave ceiling collapses. 02079_ USO#,YOVNHESHDPK1H G3BQYMXXL7R6&EDSZ Map ----- +----------------------------------------------------+ | ?????????????? ? ?? #??#?#??????? #### | | ???????????##??? #??# #####???? ?? #### | | ????????##???????????# # ####??## ### | | ???????????##?#??????# #####?##? ## | | ??????????#?#??##??#### ## ##### #? | | ??????#????#??##?###### # # #### #? | | ???????????#????## ## ###### #? | | ???????###??#???# ## | | ??????#?###?????# ##? | | ????##?###???##?# % # #### | | ????#?###?#???#? ### # ##?#? | | ?????##?####??### ## ##### | | ??###?##?###?## ## # | | ??######## ### ## ### | | ???#??#?# # ### #### ### | | ???#??### ##### ##### #### | | ????#??## ####??# ########## | | ??#????### d #####?## ######?## | | ?#??#?#??# d ####### #?#??## | | ?????##??# # #?#???# #####?# | | ?#??## ### ##?#?### ##?#??### | | ??#?# # ###?#?#########?????## | | ????# ##?#####?##?##?##???# | | ???### # #######?#????#???? | | ?#??## ##?#????##?#??#?# | | #???# @ #????##?##?# | | ??## # #?????#?#?# | | ??# # #?????#???? | | ??# ?????????# | | ??# ####### ?????????? | | ??# #??##???? ? ????????# | | ??# #### ##?#?????????????#??#? | | ??# ?#### #????????????????????? | | ?? ?#???# #????????????????????? | | ??# ???#??# ????????????????????? | | ?????????## #????????????????????? | | ?????????? < ##????????????????????? | | ???????#?? ?????????????????????? | | ????????? ### ?????????????????????? | | ?????????? #???# ##?????????????????????? | | ????????????????#???????????????????????? | | ????????????????????????????????????????? | | ????????????????????????????????????????? | | ????????????????????????????????????????? | | ????????????????????????????????????????? | | ????????????????????????????????????????? | | ????????????????????????????????????????? | | ????????????????????????????????????????? | | ????????????????????????????????????????? | | ????????????????????????????????????????? | +----------------------------------------------------+ Best States ------------- Heat Dissipation 25 Energy Generation 10 Energy Capacity 250 Matter Stores 297 Matter Capacity 300 Sight Range 16 Terrain Scan Range 14 Terrain Scan Density 85 Resistance: KI 35 Resistance: TH 35 Resistance: EX 35 Resistance: EM 35 Resistance: I 35 Resistance: S 35 Resistance: P 35 Evasion (%) 40 Targeting Accuracy 5 Offensive Hacking 20 Item Schematics ----------------- None Robot Schematics ------------------ None Fabricated ------------ Nothing Alien Tech Used ----------------- None Achievements -------------- Exterminator Killing Spree Quick And Dirty Tourist Challenges ------------ None Game ------ Seed DerelictAssemblyDesublimator Manual? 0 Play Time 00:16:49 Cumulative 3.4 hours Start 2020.07.04 @ 10:17:06 End 2020.07.04 @ 10:33:54 Sessions 1 Manual Loads 0 Difficulty Explorer Special Mode None Game No. 10 Rogue 8 Adventurer 0 Explorer 2 Win Type - Total 0 Types 0/0/0/0/0/0/0 Lore% 10 Gallery% 11 Achievement% 10 Wizard Run 0 Options --------- ASCII 0 Keyboard 0 Movement Arrows Keybinds 0 Fullscreen 1 Font 24/Terminus Map View 76x50 Tactical HUD 1 Map Filters NONE Filters NONE Steam 1 RUN: f40bd607-fdc5-4b85-a2f8-0126295900c3